Cogmind - Beta 15 @@@ ROGUE MODE // 2025.06.27 @ 15:41:37 Player: Volvedor Result: Destroyed by D-53 Grenadier with Mini Grenade Launcher Performance ------------- Evolutions (0) 0 Regions Visited (2) 400 Robots Destroyed (23) 115 Value Destroyed (518) 518 Prototype IDs (0) 0 Alien Tech Used (0) 0 Bonus (0) 0 TOTAL SCORE: 1033 Bonus ------- None Cogmind --------- Core Integrity 0/250 Matter 300/300 Energy 160/160 System Corruption 0% Temperature Cool (0) Movement Core (1500) Ox29 Location -10/Mines Parts ------- > --- POWER (1) -------- Light Nuclear Core > --- PROPULSION (2) --- (None) > --- UTILITY (2) ------ Huge Storage Unit Improved Terrain Scanner > --- WEAPON (2) ------- Assault Rifle Assault Rifle > --- INVENTORY (25) --- Ion Engine Aluminum Leg Aluminum Leg Aluminum Leg Aluminum Leg Aluminum Leg Aluminum Leg Aluminum Leg Compact Wheel Improved Heat Sink Visual Processing Unit Seismic Detector Propulsion Shielding Weapon Shielding Weapon Shielding Tractor Beam Light Assault Rifle Grenade Launcher Mining Laser Peak State ------------ > --- POWER ------------ Light Nuclear Core > --- PROPULSION ------- Light Treads Light Treads > --- UTILITY ---------- Huge Storage Unit Improved Terrain Scanner > --- WEAPON ----------- Assault Rifle Assault Rifle > --- INVENTORY -------- Ion Engine Aluminum Leg Aluminum Leg Aluminum Leg Aluminum Leg Aluminum Leg Aluminum Leg Aluminum Leg Compact Wheel Improved Heat Sink Visual Processing Unit Seismic Detector Propulsion Shielding Weapon Shielding Weapon Shielding Tractor Beam Light Assault Rifle Grenade Launcher Mining Laser [Rating: 13] Favorites ----------- Power Ion Engine Engine Ion Engine Power Core Light Nuclear Core Propulsion Light Treads Treads Light Treads Utility Huge Storage Unit Device Seismic Detector Storage Huge Storage Unit Protection Weapon Shielding Weapon Assault Rifle Ballistic Gun Assault Rifle Build | -11 -10 -10 ------- Run | Yrd Mat Min Slots Evolved . | . . . Power . | . . . Propulsion . | . . . Utility . | . . . Weapon . | . . . Parts Attached 14 | 9 4 1 Power 2 | 1 1 . Engine 1 | 1 . . Core 1 | . 1 . Reactor . | . . . Propulsion 2 | 2 . . Treads 2 | 2 . . Leg . | . . . Wheel . | . . . Hover . | . . . Flight . | . . . Utility 7 | 4 2 1 Device 3 | 2 . 1 Storage 3 | 2 1 . Processor . | . . . Hackware . | . . . Protection 1 | . 1 . Artifact . | . . . Weapon 3 | 2 1 . Energy Gun . | . . . Energy Cannon . | . . . Ballistic Gun 3 | 2 1 . Ballistic Cannon . | . . . Launcher . | . . . Special Weapon . | . . . Impact Weapon . | . . . Slashing Weapon . | . . . Piercing Weapon . | . . . Special Melee Weapon . | . . . Unidentified Prototypes . | . . . Parts Lost 3 | . 1 2 Power 1 | . 1 . Propulsion 2 | . . 2 Utility . | . . . Weapon . | . . . Highest Loss Streak 2 | . 1 2 To Critical Strikes . | . . . Average Backups 16 | 5 18 19 Power 1 | . 1 1 Propulsion 6 | 3 6 8 Utility 5 | . 6 7 Weapon 3 | . 4 3 Tool/Special . | . . . Unused Backups 19 | 1 . 18 Power 1 | . . 1 Propulsion 9 | 1 . 8 Utility 5 | . . 5 Weapon 4 | . . 4 Tool/Special . | . . . Average Slot Usage (%) 98 | . 97 100 Engine 6 | . 8 . Core 7 | . 4 14 Treads 27 | . 27 28 Device 5 | . 3 9 Storage 14 | . 14 14 Protection 7 | . 9 4 Ballistic Gun 28 | . 28 28 Peak Build Rating 13 | 8 11 13 Average Rating 9 | 6 9 12 On Entrance 6 | . 8 11 Naked Turns . | . . . Heaviest Build 90 | 15 90 90 Greatest Support 40 | 40 40 40 Greatest Overweight (x) 29 | 4 2 29 Average Overweight (x) 1 | . 1 2 Largest Inventory Capacity 25 | 8 25 25 Average Capacity 22 | 7 24 25 Most Carried 22 | 8 22 22 Average Carried 16 | 5 18 19 Final Capacity 25 | 8 25 25 Final Carried 22 | 8 22 19 Class Distribution -------------------- 100% | Mutant Dominant Class ---------------- Mutant | -10/Materials Mutant | -10/Mines Resources | -11 -10 -10 ----------- Run | Yrd Mat Min Matter Collected 789 | 367 382 40 Remotely 138 | 138 . . Salvage Created 734 | 244 486 4 Parts 46 | 18 28 . Haulers Intercepted . | . . . Recyclers Shooed . | . . . Parts Field Recycled . | . . . Retrieved Matter . | . . . Parts Self-Destructed . | . . . Prevented . | . . . Kills | -11 -10 -10 ------- Run | Yrd Mat Min Combat Hostiles Destroyed 14 | . 13 1 Guns 14 | . 13 1 Classes Destroyed 7 | 3 3 1 Worker 2 | 2 . . Tunneler 5 | 5 . . Recycler 1 | 1 . . Watcher 1 | . 1 . Swarmer 3 | . 3 . Grunt 10 | . 10 . Demolisher 1 | . . 1 Best Kill Streak 4 | 2 4 1 Combat Bots Only 3 | . 3 1 Max Kills in Single Turn 1 | 1 1 1 Gunslinging . | . . . Exploded . | . . . Melee . | . . . Uniques/NPCs Destroyed . | . . . Combat | -11 -10 -10 -------- Run | Yrd Mat Min Hostile Shots Fired 106 | . 92 14 Missed 28 | . 26 2 Hits 78 | . 66 12 Projectile 78 | . 66 12 AOE 8 | . . 8 Damage Taken 1111 | . 717 394 Core 255 | . 145 110 Absorbed by Shields . | . . . Redirected to Shielding 48 | . 35 13 Regen/Repaired (Parts) 202 | . 202 . Core Remaining (%) 100 | 100 . . Volleys Fired 69 | 16 51 2 Largest 2 | 2 2 2 Hottest 40 | 40 40 40 Shots Fired 138 | 32 102 4 Gun 138 | 32 102 4 Cannon . | . . . Launcher . | . . . Special . | . . . Kinetic 138 | 32 102 4 Thermal . | . . . Explosive . | . . . Electromagnetic . | . . . Robot Hit Streak 9 | 3 9 2 Robot Miss Streak 3 | 3 3 2 Penetration Max . | . . . Secondary Targets 1 | . 1 . Max Gunslinging Chain 1 | . 1 . Shots Hit Robots 83 | 16 65 2 Core Hits 36 | 9 26 1 Critical Kills . | . . . Critical Parts Destroyed 1 | . 1 . Critical Strikes 1 | . 1 . Destroy 1 | . 1 . Melee Attacks . | . . . Impact . | . . . Slashing . | . . . Piercing . | . . . Sneak Attacks . | . . . Combat Hostiles . | . . . Follow-up Attacks . | . . . Damage Inflicted 1056 | 197 836 23 Guns 1056 | 197 836 23 Cannons . | . . . Explosions . | . . . Melee . | . . . Ramming . | . . . Kinetic 1056 | 197 836 23 Thermal . | . . . Explosive . | . . . Electromagnetic . | . . . Impact . | . . . Slashing . | . . . Piercing . | . . . Highest Corruption . | . . . Average Corruption . | . . . Corruption Purged . | . . . Corruption Blocked . | . . . Overload Shots . | . . . Overflow Damage . | . . . Projectiles . | . . . Explosions . | . . . Melee . | . . . Knockbacks . | . . . Impact . | . . . Kinetic . | . . . Secondary . | . . . Self-Inflicted Damage . | . . . Shots . | . . . Rammed . | . . . Targets Rammed . | . . . Kicked . | . . . Crushed . | . . . Highest Temperature 11 | . 11 . Average Temperature 3 | . 3 . Received Heat Transfer 330 | . 330 . Siege Activations . | . . . Martial Activations . | . . . Shielding Activations . | . . . Robots Disrupted . | . . . Combat Hostiles . | . . . Robots Corrupted . | . . . Combat Hostiles . | . . . Parts Fried . | . . . Impact Corruptions . | . . . Robots Melted . | . . . Combat Hostiles . | . . . Parts Melted . | . . . Heat Transferred . | . . . Parts Sabotaged . | . . . Parts Stolen . | . . . Parts Stripped . | . . . Power Chain Reactions . | . . . Alert | -11 -10 -10 ------- Run | Yrd Mat Min Maximum Alert Level . | . . . Low Security (%) 100 | 100 100 100 Level 1 . | . . . Level 2 . | . . . Level 3 . | . . . Level 4 . | . . . Level 5 . | . . . High Security . | . . . Max Security . | . . . Peak Influence 120 | 5 120 37 Initial 22 | . . 22 Average 24 | . 38 5 Influence Increases 445 | 40 370 35 Destroy 0b10 Robot/C 280 | . 260 20 Destroy 0b10 Robot/NC 45 | 40 5 . Destroy Leader 72 | . 72 . Disable Machine 15 | . 15 . Destroy Structure 3 | . 3 . Lose Combat Pursuer 30 | . 15 15 Influence Decreases 445 | 40 312 93 Entered New Map 36 | . . 36 Time Decay 399 | 40 302 57 Lost Part 10 | . 10 . Squads Dispatched 4 | . 4 . Investigation 2 | . 2 . Extermination . | . . . Reinforcement 2 | . 2 . Assault . | . . . Garrison . | . . . Intercept . | . . . Searches Triggered . | . . . Construction Impeded . | . . . Haulers Reinforced . | . . . Active Scanning Responses . | . . . Cargo Convoy Interrupts . | . . . Stealth | -11 -10 -10 --------- Run | Yrd Mat Min Distress Signals 4 | . 4 . Communications Jammed . | . . . Distress Signals . | . . . Times Spotted 33 | . 25 8 Peak Tracking Total 17 | . 5 17 Tactical Retreats 2 | . 1 1 Traps | -11 -10 -10 ------- Run | Yrd Mat Min Traps Triggered 1 | . 1 . Indirectly . | . . . Trap Hack Attempts . | . . . Triggered . | . . . Disarmed . | . . . Reprogrammed . | . . . Reused . | . . . Traps Extracted . | . . . Installed . | . . . Triggered . | . . . Machines | -11 -10 -10 ---------- Run | Yrd Mat Min Machines Disabled 1 | . 1 . Max in Single Turn 1 | . 1 . Machines Repaired . | . . . Machines Dismantled . | . . . Machines Sabotaged . | . . . Overloaded Fab Kills . | . . . Hacking | -11 -10 -10 --------- Run | Yrd Mat Min Machines Accessed 4 | . 4 . Terminals 2 | . 2 . Fabricators . | . . . Repair Stations 1 | . 1 . Recycling Units 1 | . 1 . Scanalyzers . | . . . Garrison Access . | . . . Total Hacks 10 | . 10 . Successful 7 | . 7 . Failed 3 | . 3 . Catastrophic 1 | . 1 . Database Lockouts . | . . . Manual . | . . . Terminals 4 | . 4 . Fabricators . | . . . Repair Stations 4 | . 4 . Recycling Units 2 | . 2 . Scanalyzers . | . . . Garrison Access . | . . . Terminal Hacks 2 | . 2 . Zone Layout 2 | . 2 . Fabricator Hacks . | . . . Repair Station Hacks 4 | . 4 . Scan Component 2 | . 2 . Repair 2 | . 2 . Recycling Unit Hacks 1 | . 1 . Retrieve Components 1 | . 1 . Scanalyzer . | . . . Garrison Access Hacks . | . . . Unauthorized Hacks . | . . . Terminals . | . . . Fabricators . | . . . Repair Stations . | . . . Recycling Units . | . . . Scanalyzers . | . . . Garrison Access . | . . . Data Cores Recovered . | . . . Used . | . . . Hacking Detections 4 | . 4 . Full Trace Events 2 | . 2 . Feedback Events . | . . . Feedback Blocked . | . . . Robot Schematics Acquired . | . . . Robots Built . | . . . Authchips . | . . . Time . | . . . Total Robot Build Rating . | . . . Part Schematics Acquired . | . . . Parts Built . | . . . Authchips . | . . . Time . | . . . Total Part Build Rating . | . . . Parts Repaired 2 | . 2 . Time 52 | . 52 . Parts Recycled . | . . . Recycled Matter . | . . . Retrieved Matter . | . . . Retrieved Components 10 | . 10 . Parts Scanalyzed . | . . . Part Schematics Acquired . | . . . Parts Damaged . | . . . Bothacking | -11 -10 -10 ------------ Run | Yrd Mat Min Used RIF Installer . | . . . Robots Hacked . | . . . Non-combat . | . . . Combat . | . . . Robot Hacks Applied . | . . . Relay Couplers Released . | . . . Fabnet Peak Effective % . | . . . Robots Rewired . | . . . Allies Hacked . | . . . Hacks Repelled . | . . . Allies | -11 -10 -10 -------- Run | Yrd Mat Min Total Allies . | . . . Largest Group . | . . . Highest-Rated Group . | . . . Highest-Rated Ally . | . . . Total Orders . | . . . Ally Attacks . | . . . Total Damage . | . . . Kills . | . . . Allies Corrupted . | . . . Allies Melted . | . . . Intel | -11 -10 -10 ------- Run | Yrd Mat Min Active Infowar (turns) 767 | 76 327 364 Terrain 364 | . . 364 Seismic 403 | 76 327 . Robot Analysis Total . | . . . Derelict Logs Recovered . | . . . Drone Launches . | . . . Drone Recoveries . | . . . Exploration | -11 -10 -10 ------------- Run | Yrd Mat Min Turns Passed 2088 | 306 1277 505 Spaces Moved 574 | 146 334 94 Core 13 | 12 . 1 Treads 561 | 134 334 93 Legs . | . . . Wheels . | . . . Hover . | . . . Flight . | . . . Fastest Speed 50 | 50 160 320 Average Speed 278 | 161 313 332 Slowest Speed 1500 | 250 320 1500 Overloaded Moves . | . . . Propulsion Burnouts . | . . . Robots Hopped . | . . . Potential Cave-ins . | . . . Cave-ins Triggered . | . . . Exploration Rate (%) 25 | 5 51 20 Regions Visited 2 Branch Regions 1 Pre-discovered Areas . | . . . Known Exits Taken . | . . . Unknown Exits Taken 2 | 1 1 . Scrap Searched . | . . . Spaces Dug . | . . . Terrain Destroyed . | . . . Melee . | . . . Projectile . | . . . AOE . | . . . Terrain Rammed . | . . . Walls Destroyed . | . . . Machines Disabled . | . . . Actions | -11 -10 -10 --------- Run | Yrd Mat Min Total 938 | 182 462 294 Wait 248 | . 55 193 Move 572 | 145 333 94 Hop . | . . . Pick Up 24 | 10 14 . Fast Attach 9 | 7 2 . Attach 4 | 1 2 1 Detach 1 | . 1 . Swap 5 | 1 3 1 Drop 6 | 2 1 3 Fire 69 | 16 51 2 Melee . | . . . Ram . | . . . Kick . | . . . Crush . | . . . Escape Stasis . | . . . Rewire . | . . . Trap . | . . . Miscellaneous . | . . . Route ------- -11/Scrapyard -10/Materials -10/Mines (discovered 1 exit: [*Mat]) History --------- Turn | Location | Event 33 | -11/Scrapyard | Discovered new exit (range 14) 307 | -11/Scrapyard | Entered Materials 317 | -10/Materials | Build established: Mutant 1080 | -10/Materials | Repaired Lgt. Treads 1129 | -10/Materials | Repaired Lgt. Treads 1161 | -10/Materials | Core integrity fell below 50% 1285 | -10/Materials | Discovered new exit (range 16) 1584 | -10/Materials | Entered Mines 1585 | -10/Mines | Assembled infested the area 1590 | -10/Mines | Assisted by a Guerilla fighting off Assembled 1973 | -10/Mines | Discovered new exit (range 5) 2079 | -10/Mines | Core integrity fell below 20% 2089 | -10/Mines | Destroyed by D-53 Grenadier with Mini Grenade Launcher Last Messages --------------- 01816_ U-05 Engineer lays Concrete. 01817_ U-05 Engineer builds a Wall. 01829_ U-05 Engineer lays Concrete. 01831_ U-05 Engineer builds a Wall. 01831_ U-05 Engineer lays Concrete. 01832_ U-05 Engineer builds a Wall. 01839_ U-05 Engineer lays Concrete. 01840_ U-05 Engineer builds a Wall. 01846_ U-05 Engineer lays Concrete. 01897_ U-05 Engineer builds a Wall. 01914_ U-05 Engineer lays Concrete. 01967_ Acquired 28 matter. 01973_ EXIT=FOUND 02082_ Lgt. Treads destroyed. 02082_ T-07 Excavator destroyed. 02083_ The unstable cave ceiling collapses. 02084_ Lgt. Treads destroyed. 02084_ U-05 Engineer destroyed. 02087_ R-06 Scavenger collects Wheel. 02088_ The unstable cave ceiling collapses. Map ----- +----------------------------------------------------+ | ?##?## ##?#??##??????????????????????????? | | ??#?# ## #??#?????????????????????????????? | | ????# ##????#?#?#?#??????????????????????? | | ??#?# ###?????#????#?????????????????????? | | ????#### ####???????????????????????????????? | | ????#??## # #?????#??????????????????????????? | | ???#???# # [!## #???#?????##?????????????????????? | | #????###### [# #?#??????????????????????????????? | | ??????## # # ##??#?#??????????????????????????? | | ?#??### ### # # #??????#??####??????????????????? | | #?#??# ## ## #??????#?# #??????????????????? | | ???### # # ####????### #??????????????????? | | ??## ## " ## #????### #???????????????????? | | ?## ### ###??#### #????????????????????? | | ## ## ##### #?????????????????????? | | ?## # #?## ###???????????????????? | | ?# # ##???# ###???#??????????????? | | ?#### ## ####????# #??????????????????? | | ?####%###########?## #??#???????????????? | | ?## # # #### ### ##??????????????????? | | ???## ####### ### ###??????????????????? | | ???## #### #### ####???????????????????? | | ????# ## #### # #???????????????????? | | ??#?# < #### # ##??????????????????? | | ????## ########?# #??#??#?#??????????? | | ???#?## ##?????????# @ ##???#??????????????? | | #?????#####??#???????# #??????????????????? | | ????????#??????#?????# # ##??????????????????? | | ???#???#?????##???# d |##?#????????????????? | | ???????????#?????# t% r??#???????????????? | | ??#??????????????# # !##u#?????#??????????? | | ????????????#????## ######??#????????????????? | | ????????????#????### ?????????????????????????? | | ???????????????#???# ?????????????????????????? | | ???????????? ??#???# ?????????????????????????? | | ???#??????????? ??? ???????????????#??????????? | | ?????????????????? ??????????????????????????? | | ?????????? ?? ??? ????????#?????????????????? | | ????????????????# ??? ???????????????????????? | | ????????????????## #???????????????????????????? | | ?????????????????####??#?????????????????????????? | | ?????????????????????????????????????????????????? | | ?????????????????????????????????????????????????? | | ?????????????????????????????????????????????????? | | ?????????????????????????????????????????????????? | | ?????????????????????????????????????????????????? | | ?????????????????????????????????????????????????? | | ?????????????????????????????????????????????????? | | ?????????????????????????????????????????????????? | | ?????????????????????????????????????????????????? | +----------------------------------------------------+ Best States ------------- Heat Dissipation 25 Energy Generation 14 Energy Capacity 250 Matter Stores 300 Matter Capacity 300 Sight Range 16 Terrain Scan Range 16 Terrain Scan Density 10 Weapon Shielding 33 Evasion (%) 40 Recoil Reduction 2 Item Schematics ----------------- None Robot Schematics ------------------ None Fabricated ------------ Nothing Repaired ---------- Lgt. Treads | 32% | -10/Materials Lgt. Treads | 23% | -10/Materials Alien Tech Used ----------------- None Achievements -------------- None Challenges ------------ None Game ------ Seed ThrowingStorageThruster Manual? 0 Play Time 00:12:11 Cumulative 33.8 hours Start 2025.06.27 @ 15:29:11 End 2025.06.27 @ 15:41:37 Sessions 1 Manual Loads 0 Difficulty Rogue Special Mode None Game No. 35 Rogue 35 Adventurer 0 Explorer 0 Win Type - Total 0 Types 0/0/0/0/0/0/0/0/0/0 Lore% 21 Gallery% 22 Achievement% 17 Wizard Run 0 Options --------- Layout 2 ASCII 0 Keyboard 0 Movement Mouse Keybinds 0 Fullscreen 1 Font 16/TerminusCaps Map View 27x23 Zoom Use 86% Tactical HUD 1 Map Filters NONE Filters NONE Steam 1 RUN: 50c50cda-710d-4b19-b6d2-f03cb57e456f